lending/lending_fUSD_20250808
["ID","MTS","AMOUNT","RATE_DAILY","PERIOD"]
[378001994,1754663438901,-511.39,0.00018757,2]
[378001995,1754663438910,-592.2,0.00018757,2]
[378001996,1754663438919,-868.67,0.00018757,2]
[378001997,1754663438928,-1387.09,0.00018757,2]
[378001998,1754663438937,-575.61,0.00018757,2]
[378001999,1754663438947,-946.23,0.00018757,2]
[378002000,1754663438955,-492.1,0.00018757,2]
[378002001,1754663438965,-802.27,0.00018757,2]
[378002002,1754663438974,-2178.27,0.00018757,2]
[378002003,1754663438983,-400.0,0.00018757,2]
[378002004,1754663438992,-418.47,0.00018757,2]
[378002005,1754663439001,-655.46,0.00018757,2]
[378002006,1754663439011,-806.02,0.00018757,2]
[378002007,1754663439020,-502.13,0.00018757,2]
[378002008,1754663439029,-400.0,0.00018757,2]
[378002009,1754663439037,-400.0,0.00018757,2]
[378002010,1754663439046,-559.81,0.00018757,2]
[378002011,1754663439056,-400.0,0.00018757,2]
[378002012,1754663439066,-400.0,0.00018757,2]
[378002013,1754663439075,-400.0,0.00018757,2]
[378002014,1754663439085,-549.08,0.00018757,2]
[378002015,1754663439094,-400.0,0.00018757,2]
[378002016,1754663439103,-1419.01,0.00018757,2]
[378002017,1754663439113,-4130.52,0.00018757,2]
[378002018,1754663439122,-878.95,0.00018757,2]
[378002019,1754663439132,-500.0,0.00018761,2]
[378002020,1754663439141,-500.0,0.00018761,2]
[378002021,1754663439150,-150.0,0.00018761,2]
[378002022,1754663439160,-150.0,0.00018761,2]
[378002023,1754663439169,-150.0,0.00018761,2]
[378002024,1754663439179,-154.0,0.00018761,2]
[378002025,1754663439188,-3165.30308714,0.00018764,2]
[378002026,1754663439198,-359.57,0.00018767,2]
[378002027,1754663439207,-150.0,0.00018767,2]
[378002028,1754663439217,-150.0,0.00018769,2]
[378002029,1754663439226,-150.0,0.00018769,2]
[378002030,1754663439236,-500.0,0.00018773,2]
[378002031,1754663439246,-500.0,0.00018773,2]
[378002032,1754663439255,-150.0,0.00018773,2]
[378002033,1754663439265,-168.0,0.00018778,2]
[378002034,1754663439274,-150.0,0.00018779,2]
[378002035,1754663439371,-150.0,0.00018779,2]
[378002036,1754663439382,-170.62629438,0.00018783,2]
[378002037,1754663439391,-150.0,0.00018791,2]
[378002038,1754663439401,-150.0,0.00018791,2]
[378002039,1754663439411,-300.0,0.00018791,2]
[378002040,1754663439420,-3165.30308714,0.00018792,2]
[378002041,1754663439431,-236.38841812,0.00018792,2]
[378002042,1754663439440,-150.0,0.00018794,2]
[378002043,1754663439450,-150.0,0.00018795,2]
[378002044,1754663439459,-153590.65481909,0.000188,3]
[378002046,1754663439474,-1169.168,0.000188,3]
[378002057,1754663440063,-363.57179466,0.00018654,2]
[378002058,1754663440074,-164.37566695,0.00018654,2]
[378002059,1754663440083,-203.72347783,0.00018654,2]
[378002060,1754663440093,-400.0,0.00018754,2]
[378002061,1754663440103,-400.0,0.00018754,2]
[378002062,1754663440112,-400.0,0.00018754,2]
[378002063,1754663440122,-400.0,0.00018754,2]
[378002064,1754663440131,-400.0,0.00018754,2]
[378002065,1754663440140,-221.04152854,0.00018755,2]
[378002066,1754663440157,-178.95847146,0.00018755,2]
[378002067,1754663440170,-10653.45524283,0.000188,3]
[378002068,1754663440190,-3581.37539607,0.000188,3]
[378002069,1754663440201,-2538.93924365,0.000188,3]
[378002070,1754663440221,-227.13800806,0.00018778,2]
[378002072,1754663440230,-272.86199194,0.000188,3]
[378002073,1754663440955,-400.0,0.00018754,2]
[378002074,1754663440965,-512.85,0.00018755,2]
[378002075,1754663440975,-23630.3,0.000188,3]
[378002076,1754663441046,-11523.62331295,0.000188,3]
[378002077,1754663441055,-211.62674257,0.000188,3]
[378002078,1754663441065,-1000.0,0.000188,6]
[378002079,1754663441074,-150.0,0.00018808,2]
[378002080,1754663441083,-500.0,0.0001881,2]
[378002081,1754663441092,-451.17986,0.0001881,2]
[378002082,1754663441101,-3165.30308714,0.00018819,2]
[378002083,1754663441110,-150.0,0.00018822,2]
[378002084,1754663441119,-150.0,0.00018833,2]
[378002085,1754663441129,-150.0,0.00018835,2]
[378002086,1754663441138,-150.0,0.00018842,2]
[378002087,1754663441147,-300.0,0.00018844,2]
[378002088,1754663441157,-3165.30308714,0.00018846,2]
[378002089,1754663441166,-150.0,0.00018846,2]
[378002090,1754663441175,-150.0,0.00018851,2]
[378002091,1754663441184,-150.0,0.00018857,2]
[378002092,1754663441194,-150.0,0.00018863,2]
[378002093,1754663441203,-500.0,0.00018865,2]
[378002094,1754663441212,-150.0,0.00018872,2]
[378002095,1754663441221,-500.0,0.00018873,2]
[378002096,1754663441230,-502.79524056,0.00018873,2]
[378002097,1754663441239,-3165.30308714,0.00018873,2]
[378002098,1754663441248,-714.266,0.00018876,2]
[378002099,1754663441257,-500.0,0.00018877,2]
[378002100,1754663441267,-400.0,0.00018878,2]
[378002101,1754663441276,-400.0,0.00018878,2]
[378002102,1754663441285,-316.13176457,0.00018878,2]
[378002103,1754663441295,-400.0,0.00018878,2]
[378002104,1754663441304,-400.0,0.00018878,2]
[378002105,1754663441313,-451.18,0.00018878,2]
[378002106,1754663441323,-403.18068411,0.00018878,2]
[378002107,1754663441332,-400.0,0.00018878,2]
[378002108,1754663441341,-400.0,0.00018878,2]
[378002109,1754663441351,-400.0,0.00018878,2]
[378002110,1754663441360,-400.0,0.00018878,2]
[378002111,1754663441369,-400.90291116,0.00018878,2]
[378002112,1754663441378,-400.0,0.00018878,2]
[378002113,1754663441387,-400.0,0.00018878,2]
[378002114,1754663441396,-400.0,0.00018878,2]
[378002115,1754663441405,-400.0,0.00018878,2]
[378002116,1754663441415,-400.0,0.00018878,2]
[378002117,1754663441425,-516.56,0.00018878,2]
[378002118,1754663441434,-400.0,0.00018878,2]
[378002119,1754663441445,-400.0,0.00018878,2]
[378002120,1754663441453,-400.0,0.00018878,2]
[378002121,1754663441462,-400.0,0.00018878,2]
[378002122,1754663441471,-403.29,0.00018878,2]
[378002123,1754663441479,-400.0,0.00018878,2]
[378002124,1754663441487,-400.0,0.00018878,2]
[378002125,1754663441494,-406.48,0.00018878,2]
[378002126,1754663441501,-400.0,0.00018878,2]
[378002127,1754663441509,-400.0,0.00018878,2]
[378002128,1754663441517,-400.0,0.00018878,2]
[378002129,1754663441527,-429.95,0.00018878,2]
[378002130,1754663441536,-400.0,0.00018878,2]
[378002131,1754663441545,-400.0,0.00018878,2]
[378002132,1754663441554,-400.0,0.00018878,2]
[378002133,1754663441564,-535.93,0.00018878,2]
[378002134,1754663441573,-400.0,0.00018878,2]
[378002135,1754663441582,-637.67,0.00018878,2]
[378002136,1754663441591,-607.29,0.00018878,2]
[378002137,1754663441600,-500.0,0.00018878,2]
[378002138,1754663441610,-400.0,0.00018878,2]
[378002139,1754663441619,-400.0,0.00018878,2]
[378002140,1754663441627,-404.9,0.00018878,2]
[378002141,1754663441636,-430.61,0.00018878,2]
[378002142,1754663441646,-400.0,0.00018878,2]
[378002143,1754663441655,-400.0,0.00018878,2]
[378002144,1754663441664,-400.0,0.00018878,2]
[378002145,1754663441673,-400.0,0.00018878,2]
[378002146,1754663441682,-400.0,0.00018878,2]
[378002147,1754663441691,-649.74,0.00018878,2]
[378002148,1754663441701,-482.88,0.00018878,2]
[378002149,1754663441710,-400.0,0.00018878,2]
[378002150,1754663441718,-400.0,0.00018878,2]
[378002151,1754663441727,-400.0,0.00018878,2]
[378002152,1754663441735,-400.0,0.00018878,2]
[378002153,1754663441743,-400.0,0.00018878,2]
[378002154,1754663441753,-401.31839368,0.00018878,2]
[378002155,1754663441763,-400.0,0.00018878,2]
[378002156,1754663441772,-400.0,0.00018878,2]
[378002157,1754663441781,-573.8,0.00018878,2]
[378002158,1754663441790,-400.0,0.00018878,2]
[378002159,1754663441799,-400.0,0.00018878,2]
[378002160,1754663441808,-400.0,0.00018878,2]
[378002161,1754663441817,-400.0,0.00018878,2]
[378002162,1754663441827,-485.56,0.00018878,2]
[378002163,1754663441836,-308.8170658,0.00018878,2]
[378002164,1754663441845,-400.0,0.00018878,2]
[378002165,1754663441854,-400.0,0.00018878,2]
[378002166,1754663441863,-673.32,0.00018878,2]
[378002167,1754663441872,-400.0,0.00018878,2]
[378002168,1754663441882,-400.0,0.00018878,2]
[378002169,1754663441893,-400.0,0.00018878,2]
[378002170,1754663441903,-430.11,0.00018878,2]
[378002171,1754663441912,-400.0,0.00018878,2]
[378002172,1754663441921,-400.0,0.00018878,2]
[378002173,1754663441931,-418.85432963,0.00018878,2]
[378002174,1754663441940,-400.0,0.00018878,2]
[378002175,1754663441949,-400.0,0.00018878,2]
[378002176,1754663441959,-400.0,0.00018878,2]
[378002177,1754663441969,-400.8960637,0.00018878,2]
[378002178,1754663441979,-400.0,0.00018878,2]
[378002179,1754663441987,-400.0,0.00018878,2]
[378002180,1754663441996,-400.0,0.00018878,2]
[378002181,1754663442006,-400.0,0.00018878,2]
[378002182,1754663442015,-400.0,0.00018878,2]
[378002183,1754663442024,-400.0,0.00018878,2]
[378002184,1754663442034,-400.0,0.00018878,2]
[378002185,1754663442043,-400.0,0.00018878,2]
[378002186,1754663442052,-400.0,0.00018878,2]
[378002187,1754663442062,-499.52,0.00018878,2]
[378002188,1754663442071,-400.0,0.00018878,2]
[378002189,1754663442080,-400.0,0.00018878,2]
[378002190,1754663442089,-400.0,0.00018878,2]
[378002191,1754663442099,-400.0,0.00018878,2]
[378002192,1754663442108,-400.0,0.00018878,2]
[378002193,1754663442118,-400.0,0.00018878,2]
[378002194,1754663442127,-400.0,0.00018878,2]
[378002195,1754663442136,-400.0,0.00018878,2]
[378002196,1754663442146,-400.0,0.00018878,2]
[378002197,1754663442156,-306.59251019,0.00018878,2]
[378002198,1754663442165,-400.0,0.00018878,2]
[378002199,1754663442176,-400.0,0.00018878,2]
[378002200,1754663442185,-400.0,0.00018878,2]
[378002201,1754663442195,-400.0,0.00018878,2]
[378002202,1754663442205,-523.6,0.00018878,2]
[378002203,1754663442214,-400.0,0.00018878,2]
[378002204,1754663442224,-623.55,0.00018878,2]
[378002205,1754663442233,-400.0,0.00018878,2]
[378002206,1754663442242,-400.0,0.00018878,2]
[378002207,1754663442251,-400.0,0.00018878,2]
[378002208,1754663442261,-400.0,0.00018878,2]
[378002209,1754663442270,-400.0,0.00018878,2]
[378002210,1754663442279,-400.0,0.00018878,2]
[378002211,1754663442288,-491.66,0.00018878,2]
[378002212,1754663442298,-400.0,0.00018878,2]
[378002213,1754663442307,-400.0,0.00018878,2]
[378002214,1754663442316,-425.29,0.00018878,2]
[378002215,1754663442325,-400.0,0.00018878,2]
[378002216,1754663442335,-400.0,0.00018878,2]
[378002217,1754663442344,-400.0,0.00018878,2]
[378002218,1754663442353,-400.0,0.00018878,2]
[378002219,1754663442362,-413.28,0.00018878,2]
[378002220,1754663442371,-446.59,0.00018878,2]
[378002221,1754663442381,-463.55,0.00018878,2]
[378002222,1754663442390,-400.0,0.00018878,2]
[378002223,1754663442400,-400.0,0.00018878,2]
[378002224,1754663442409,-400.0,0.00018878,2]
[378002225,1754663442420,-400.0,0.00018878,2]
[378002226,1754663442429,-400.0,0.00018878,2]
[378002227,1754663442439,-400.0,0.00018878,2]
[378002228,1754663442448,-500.0,0.00018878,2]
[378002229,1754663442457,-474.23,0.00018878,2]
[378002230,1754663442467,-469.83,0.00018878,2]
[378002231,1754663442477,-400.0,0.00018878,2]
[378002232,1754663442487,-400.0,0.00018878,2]
[378002233,1754663442497,-400.0,0.00018878,2]
[378002234,1754663442507,-400.0,0.00018878,2]
[378002235,1754663442516,-400.0,0.00018878,2]
[378002236,1754663442527,-400.0,0.00018878,2]
[378002237,1754663442537,-400.0,0.00018878,2]
[378002238,1754663442547,-400.0,0.00018878,2]
[378002239,1754663442557,-400.0,0.00018878,2]
[378002240,1754663442567,-400.0,0.00018878,2]
[378002241,1754663442576,-569.35,0.00018878,2]
[378002242,1754663442586,-400.0,0.00018878,2]
[378002243,1754663442597,-400.0,0.00018878,2]
[378002244,1754663442607,-400.0,0.00018878,2]
[378002245,1754663442618,-400.0,0.00018878,2]
[378002246,1754663442627,-497.62,0.00018878,2]
[378002247,1754663442637,-400.0,0.00018878,2]
[378002248,1754663442647,-400.0,0.00018878,2]
[378002249,1754663442657,-400.0,0.00018878,2]
[378002250,1754663442667,-530.2,0.00018878,2]
[378002251,1754663442680,-400.0,0.00018878,2]
[378002252,1754663442691,-400.0,0.00018878,2]
[378002253,1754663442700,-400.0,0.00018878,2]
[378002254,1754663442710,-400.0,0.00018878,2]
[378002255,1754663442721,-596.11,0.00018878,2]
[378002256,1754663442731,-405.45,0.00018878,2]
[378002257,1754663442741,-400.0,0.00018878,2]
[378002258,1754663442752,-400.0,0.00018878,2]
[378002259,1754663442762,-473.21,0.00018878,2]
[378002260,1754663442772,-400.0,0.00018878,2]
[378002261,1754663442782,-400.0,0.00018878,2]
[378002262,1754663442792,-400.0,0.00018878,2]
[378002263,1754663442802,-400.0,0.00018878,2]
[378002264,1754663442811,-527.5,0.00018878,2]
[378002265,1754663442822,-400.0,0.00018878,2]
[378002266,1754663442831,-400.0,0.00018878,2]
[378002267,1754663442842,-513.36,0.00018878,2]
[378002269,1754663442852,-400.0,0.00018878,2]
[378002270,1754663442862,-400.0,0.00018878,2]
[378002271,1754663442872,-224.02650647,0.00018878,2]
[378002272,1754663442882,-527.16850354,0.00018878,2]
[378002273,1754663442895,-400.0,0.00018878,2]
[378002274,1754663442906,-400.0,0.00018878,2]
[378002275,1754663442917,-500.78,0.00018878,2]
[378002276,1754663442932,-458.95,0.00018878,2]
[378002277,1754663442942,-400.0,0.00018878,2]
[378002278,1754663442952,-400.0,0.00018878,2]
[378002279,1754663442962,-400.0,0.00018878,2]
[378002280,1754663442972,-398.19943742,0.00018878,2]
[378002281,1754663442982,-400.0,0.00018878,2]
[378002282,1754663442992,-400.0,0.00018878,2]
[378002283,1754663443002,-565.26,0.00018878,2]
[378002284,1754663443012,-400.0,0.00018878,2]
[378002285,1754663443021,-400.0,0.00018878,2]
[378002286,1754663443031,-432.45,0.00018878,2]
[378002287,1754663443041,-400.0,0.00018878,2]
[378002288,1754663443050,-246.70566607,0.00018878,2]
[378002289,1754663443060,-400.0,0.00018878,2]
[378002290,1754663443070,-465.44,0.00018878,2]
[378002291,1754663443079,-201.57603642,0.00018878,2]
[378002292,1754663443089,-400.0,0.00018878,2]
[378002293,1754663443099,-400.0,0.00018878,2]
[378002294,1754663443108,-475.67,0.00018878,2]
[378002295,1754663443119,-400.0,0.00018878,2]
[378002296,1754663443129,-523.74,0.00018878,2]
[378002297,1754663443138,-592.6,0.00018878,2]
[378002298,1754663443148,-400.0,0.00018878,2]
[378002299,1754663443158,-400.0,0.00018878,2]
[378002300,1754663443167,-400.0,0.00018878,2]
[378002301,1754663443180,-400.0,0.00018878,2]
[378002302,1754663443190,-400.0,0.00018878,2]
[378002303,1754663443200,-497.38,0.00018878,2]
[378002304,1754663443211,-564.18,0.00018878,2]
[378002305,1754663443220,-400.0,0.00018878,2]
[378002306,1754663443230,-400.0,0.00018878,2]
[378002307,1754663443240,-400.0,0.00018878,2]
[378002308,1754663443250,-400.0,0.00018878,2]
[378002309,1754663443260,-400.0,0.00018878,2]
[378002310,1754663443270,-400.0,0.00018878,2]
[378002311,1754663443280,-400.0,0.00018878,2]
[378002312,1754663443290,-400.0,0.00018878,2]
[378002313,1754663443300,-587.85,0.00018878,2]
[378002314,1754663443310,-400.0,0.00018878,2]
[378002315,1754663443319,-402.56,0.00018878,2]
[378002316,1754663443329,-460.31,0.00018878,2]
[378002317,1754663443339,-400.0,0.00018878,2]
[378002318,1754663443349,-400.0,0.00018878,2]
[378002319,1754663443359,-400.0,0.00018878,2]
[378002320,1754663443368,-400.0,0.00018878,2]
[378002321,1754663443378,-400.0,0.00018878,2]
[378002322,1754663443388,-658.82,0.00018878,2]
[378002323,1754663443398,-400.0,0.00018878,2]
[378002324,1754663443407,-400.0,0.00018878,2]
[378002325,1754663443417,-402.32005835,0.00018878,2]
[378002326,1754663443430,-500.0,0.00018878,2]
[378002327,1754663443439,-400.0,0.00018878,2]
[378002328,1754663443449,-400.0,0.00018878,2]
[378002329,1754663443459,-400.0,0.00018878,2]
[378002330,1754663443469,-400.0,0.00018878,2]
[378002331,1754663443478,-400.0,0.00018878,2]
[378002332,1754663443488,-419.47,0.00018878,2]
[378002333,1754663443497,-400.0,0.00018878,2]
[378002334,1754663443507,-400.0,0.00018878,2]
[378002335,1754663443516,-500.0,0.00018878,2]
[378002336,1754663443527,-500.14,0.00018878,2]
[378002337,1754663443537,-400.0,0.00018878,2]
[378002339,1754663443546,-428.42267592,0.00018878,2]
[378002340,1754663443556,-400.0,0.00018878,2]
[378002341,1754663443565,-470.75,0.00018878,2]
[378002342,1754663443576,-400.0,0.00018878,2]
[378002343,1754663443585,-400.0,0.00018878,2]
[378002344,1754663443595,-400.0,0.00018878,2]
[378002345,1754663443605,-400.0,0.00018878,2]
[378002346,1754663443615,-180563.69909652,0.00018879,2]
[378002347,1754663443625,-28362.72268271,0.00018879,2]
[378002348,1754663443635,-200092.86,0.00018879,2]
[378002349,1754663443644,-150.0,0.00018883,2]
[378002350,1754663443654,-150.0,0.00018884,2]
[378002351,1754663443664,-150.0,0.00018887,2]
[378002352,1754663443676,-150.0,0.0001889,2]
[378002353,1754663443686,-150.0,0.00018896,2]
[378002354,1754663443696,-267.027,0.000189,2]
[378002355,1754663443705,-1300.0,0.000189,6]
[378002356,1754663443715,-206.88692928,0.000189,3]
[378002357,1754663443725,-451.15353998,0.000189,2]
[378002358,1754663443735,-510.58728426,0.000189,2]
[378002359,1754663443744,-3165.30308714,0.000189,2]
[378002360,1754663443754,-1457.13639483,0.000189,2]
[378002361,1754663443763,-150.0,0.00018902,2]
[378002362,1754663443773,-150.0,0.00018907,2]
[378002363,1754663443783,-150.0,0.00018909,2]
[378002364,1754663443793,-150.0,0.00018912,2]
[378002365,1754663443802,-457.64618948,0.00018917,2]
[378002366,1754663443812,-451.17987,0.0001892,2]
[378002367,1754663443822,-842.44706758,0.0001892,2]
[378002368,1754663443831,-211.62674257,0.0001892,2]
[378002369,1754663443841,-160.0,0.0001892,2]
[378002370,1754663443851,-150.0,0.00018921,2]
[378002371,1754663443860,-150.0,0.00018929,2]
[378002372,1754663443870,-6457.1864,0.00018931,2]
[378002373,1754663443879,-150.0,0.00018939,2]
[378002374,1754663443889,-5470.56010268,0.00018944,2]
[378002375,1754663443904,-170.37868331,0.00018951,2]
[378002376,1754663443914,-150.0,0.00018953,2]
[378002377,1754663443924,-150.0,0.00018967,2]
[378002378,1754663443935,-150.0,0.00018968,2]
[378002379,1754663443944,-500.0,0.0001897,2]
[378002380,1754663443954,-500.0,0.0001897,2]
[378002381,1754663443964,-500.0,0.0001897,2]
[378002382,1754663443975,-803.25725921,0.0001897,2]
[378002383,1754663443986,-1000.0,0.0001897,2]
[378002384,1754663443996,-1000.0,0.0001897,2]
[378002385,1754663444005,-1000.0,0.0001897,2]
[378002386,1754663444015,-1000.0,0.0001897,2]
[378002387,1754663444025,-1000.0,0.0001897,2]
[378002388,1754663444036,-1006.94691386,0.0001897,2]
[378002389,1754663444045,-500.0,0.00018973,2]
[378002390,1754663444055,-502.23686703,0.00018973,2]
[378002391,1754663444065,-159.03229537,0.00018973,2]
[378002392,1754663444075,-500.0,0.00018973,2]
[378002393,1754663444085,-150.0,0.00018979,2]
[378002394,1754663444094,-150.0,0.00018979,2]
[378002395,1754663444104,-150.0,0.00018984,2]
[378002396,1754663444114,-150.0,0.00018995,2]
[378002397,1754663444123,-1000.0,0.00018999,2]
[378002398,1754663444133,-1000.0,0.00018999,2]
[378002399,1754663444143,-1000.0,0.00018999,2]
[378002400,1754663444152,-500.0,0.00018999,2]
[378002401,1754663444162,-161.68,0.00018999,2]
[378002402,1754663444173,-1000.0,0.00018999,2]
[378002403,1754663444183,-883.07,0.00018999,2]
[378002404,1754663444193,-1041.46,0.00018999,2]
[378002405,1754663444202,-687.51,0.00018999,2]
[378002406,1754663444213,-857.26,0.00018999,2]
[378002407,1754663444222,-659.06,0.00018999,2]
[378002408,1754663444232,-1472.94,0.00018999,2]
[378002409,1754663444242,-773.44,0.00018999,2]
[378002410,1754663444252,-400.0,0.00018999,2]
[378002411,1754663444262,-1247.39,0.00018999,2]
[378002412,1754663444272,-918.33,0.00018999,2]
[378002413,1754663444281,-754.33,0.00018999,2]
[378002414,1754663444291,-621.69,0.00018999,2]
[378002415,1754663444301,-400.0,0.00018999,2]
[378002416,1754663444311,-105473.26159351,0.00019,2]
[378002417,1754663444321,-270.242487,0.00019,2]
[378002418,1754663444331,-2047.64,0.00019,2]
[378002419,1754663444340,-390514.20654824,0.00019,2]
[378002420,1754663444396,-99176.43475937,0.00019,2]
[378002421,1754663445009,435.93,0.00015068,2]
[378002422,1754663445049,435.93,0.00016657,2]
[378002423,1754663445292,-435.93,0.00018246,2]
[378002424,1754663445301,-437.91,0.00018754,2]
[378002425,1754663445311,-266.72237691,0.00018754,2]
[378002426,1754663445348,-133.27762309,0.00018754,2]
[378002427,1754663445358,-235.77078454,0.00018754,2]
[378002428,1754663445370,-192.61921546,0.00018754,2]
[378002429,1754663445379,-474.15,0.00018754,2]
[378002430,1754663445389,-400.89622164,0.00018754,2]
[378002431,1754663445398,-352.56325815,0.00018754,2]
[378002432,1754663445435,-63.13674185,0.00018754,2]
[378002433,1754663445445,-400.0,0.00018754,2]
[378002434,1754663445454,-400.0,0.00018755,2]
[378002435,1754663445464,-400.0,0.00018756,2]
[378002436,1754663445473,-227.13800804,0.00018839,2]
[378002437,1754663445483,-225.89335753,0.0001899,2]
[378002438,1754663445493,-225.89335753,0.0001899,2]
[378002440,1754663445502,-225.89335753,0.0001899,2]
[378002441,1754663445512,-8145.49286031,0.00019,2]
[378002446,1754663446724,-513.00006,0.00018238,2]
[378002447,1754663446734,-400.0,0.00018754,2]
[378002448,1754663446743,-400.0,0.00018754,2]
[378002449,1754663446754,-426.42,0.00018878,2]
[378002450,1754663446763,-296623.10385716,0.00019,2]
[378002451,1754663495943,-3394.0,0.0002,14]
[378002452,1754663513488,172.81,0.0001442,2]
[378002453,1754663545276,458.06,0.00017973,2]
[378002454,1754663559543,154.0,0.000157,2]
[378002455,1754663559965,151.0,0.0001688,2]
[378002456,1754663565122,-457.64618948,0.000188,3]
[378002457,1754663565153,-2936.35381052,0.00019,5]
[378002458,1754663637731,2816.111141,0.00017979,2]
[378002462,1754663700822,226.77,0.00013699,2]
[378002463,1754663703407,555.99,0.00017862,2]
[378002464,1754663781806,166.43,0.00017823,2]
[378002465,1754663810577,250.0,0.00017816,2]
[378002466,1754663818669,317.72,0.00017805,2]
[378002470,1754664042898,1961.52492776,0.000178,2]
[378002471,1754664042920,15000.0,0.000178,2]
[378002472,1754664042945,2546.40507224,0.000178,2]
[378002474,1754664067963,348.96141428,0.00016986,2]
[378002475,1754664091938,150.0,0.000147,2]
[378002476,1754664092325,150.0,0.0001588,2]
[378002477,1754664092727,150.0,0.0001707,2]
[378002478,1754664134848,174.94,0.00017725,2]
[378002479,1754664135084,174.94,0.00017814,2]
[378002480,1754664135307,174.94,0.00017902,2]
[378002481,1754664135618,521.0,0.00017238,2]
[378002488,1754664384324,415.88,0.00015068,2]
[378002489,1754664384420,415.88,0.0001665,2]
[378002503,1754664487499,654.58,0.00017717,2]
[378002504,1754664490182,366.44,0.00017717,2]
[378002507,1754664592769,1000.0,0.00017704,2]
[378002508,1754664623807,150.0,0.000137,2]
[378002509,1754664624089,150.0,0.0001488,2]
[378002510,1754664624475,150.0,0.0001607,2]
[378002511,1754664624845,150.0,0.0001725,2]
[378002521,1754664631974,-2500.0,0.00018112,2]
[378002522,1754664631984,-2500.0,0.00018136,2]
[378002523,1754664631993,-300.0,0.00018182,2]
[378002524,1754664632002,-1200.0,0.00018182,2]
[378002525,1754664632012,-415.88,0.00018232,2]
[378002526,1754664632021,-366.44,0.00018381,2]
[378002527,1754664632031,-168.55,0.00018408,2]
[378002528,1754664632040,-150.0,0.0001843,2]
[378002529,1754664632049,-226.0,0.00018469,2]
[378002530,1754664632058,-3844.13,0.00018633,2]
[378002531,1754664632193,-352.97322033,0.00018633,2]
[378002532,1754664632207,-1002.33362411,0.00018633,2]
[378002533,1754664632217,-267.46074303,0.00018633,2]
[378002534,1754664632226,-223.77,0.00018633,2]
[378002535,1754664632235,-600.0,0.00018634,2]
[378002536,1754664632245,-287.13,0.00018634,2]
[378002537,1754664632254,-200.0,0.00018644,2]
[378002538,1754664632265,-160.0,0.00018644,2]
[378002539,1754664632276,-500.0,0.00018644,2]
[378002540,1754664632285,-500.0,0.00018644,2]
[378002541,1754664632294,-500.0,0.00018644,2]
[378002542,1754664632303,-850.9165,0.00018654,2]
[378002543,1754664632313,-2500.0,0.00018654,2]
[378002544,1754664632322,-2456.27777082,0.00018654,2]
[378002545,1754664632332,-162.32105503,0.00018655,2]
[378002546,1754664632342,-5434.8137,0.00018655,2]
[378002547,1754664632351,-6457.1864,0.00018655,2]
[378002548,1754664632361,-2456.27777075,0.00018681,2]
[378002549,1754664632371,-5391.81600769,0.00018688,2]